bitfinex/quotes_BTCUSD_20240905
["timestamp","ask_amount","ask_price","bid_price","bid_amount"]
[1725545946518,0.001,57045.0,57039.0,0.014]
[1725545946719,0.175295,57047.0,57040.0,0.00350596]
[1725545946953,0.175297,57046.0,57037.0,0.350645]
[1725545947196,0.175297,57046.0,57031.0,0.15603]
[1725545947197,0.001,57044.0,57033.0,0.014]
[1725545947426,0.175311,57042.0,57034.0,0.175332]
[1725545947686,0.350613,57043.0,57033.0,0.014]
[1725545947927,0.001,57037.0,57033.0,0.014]
[1725545948193,0.001,57037.0,57034.0,0.00350644]
[1725545948413,0.176303,57044.0,57036.0,0.175326]
[1725545948649,0.001,57044.0,57037.0,0.175321]
[1725545948914,0.350593,57047.0,57036.0,0.00350617]
[1725545949187,0.350593,57047.0,57040.0,0.012]
[1725545949401,0.175291,57048.0,57041.0,0.175311]
[1725545949624,0.175288,57049.0,57042.0,0.175308]
[1725545949844,0.1,57054.0,57042.0,0.175308]
[1725545949845,0.1,57054.0,57042.0,0.00350591]
[1725545950080,0.1,57060.0,57041.0,0.2905]
[1725545950329,0.1,57060.0,57041.0,0.1608]
[1725545950330,0.350577,57049.0,57041.0,0.1608]
[1725545950549,0.175304,57044.0,57041.0,0.1608]
[1725545950806,0.1,57060.0,57041.0,0.1608]
[1725545950807,0.175295,57047.0,57041.0,0.1608]
[1725545951027,0.175297,57046.0,57041.0,0.1608]
[1725545951244,0.350584,57048.0,57041.0,0.1608]
[1725545951463,0.1,57060.0,57042.0,0.00350579]
[1725545951464,0.175276,57053.0,57042.0,0.00350579]
[1725545951680,0.1,57060.0,57042.0,0.00350579]
[1725545951681,0.52650515,57059.0,57042.0,0.00350579]
[1725545951897,0.1,57060.0,57046.0,0.175296]
[1725545951898,0.175276,57053.0,57046.0,0.175296]
[1725545952382,0.15838212,57061.0,57054.0,0.175269]
[1725545952383,0.175251,57061.0,57054.0,0.175269]
[1725545952386,0.5,57081.0,57055.0,0.1562]
[1725545952641,0.52650515,57066.0,57055.0,0.15970493]
[1725545952880,0.2922,57076.0,57055.0,0.15970493]
[1725545952881,0.525697,57068.0,57055.0,0.15970493]
[1725545953108,0.175244,57064.0,57056.0,0.350532]
[1725545953325,0.350472,57066.0,57058.0,0.175258]
[1725545953576,0.350472,57066.0,57057.0,0.175263]
[1725545953577,0.175246,57063.0,57057.0,0.175263]
[1725545953803,0.35043,57073.0,57055.0,0.1612]
[1725545954051,0.4761,57075.0,57055.0,0.1612]
[1725545954052,0.3505,57062.0,57055.0,0.005]
[1725545954270,0.175263,57057.0,57055.0,0.005]
[1725545954518,0.350503,57061.0,57055.0,0.004]
[1725545954813,0.175258,57059.0,57055.0,0.004]
[1725545955047,0.350459,57068.0,57054.0,0.00163]
[1725545955048,0.175236,57066.0,57054.0,0.00163]
[1725545955334,0.1,57074.0,57055.0,0.180267]
[1725545955335,0.175252,57061.0,57055.0,0.180267]
[1725545955542,0.175248,57062.0,57056.0,0.014]
[1725545955792,0.175248,57062.0,57056.0,0.189265]
[1725545956083,0.12554207,57074.0,57057.0,0.00350512]
[1725545956278,0.52650515,57072.0,57057.0,0.00350512]
[1725545956532,0.001,57061.0,57060.0,0.175252]
[1725545957040,0.2801,57092.0,57089.0,0.175164]
[1725545957261,0.52650515,57090.0,57089.0,0.175165]
[1725545957526,0.485052,57105.0,57088.0,0.1643]
[1725545957527,0.000815,57105.0,57088.0,0.1643]
[1725545957792,0.000815,57105.0,57104.0,0.689657]
[1725545958029,0.000815,57105.0,57104.0,0.51932225]
[1725545958030,0.001715,57105.0,57104.0,0.51932225]
[1725545958278,0.001715,57105.0,57104.0,1.04467925]
[1725545958528,0.001715,57105.0,57104.0,1.39491725]
[1725545958784,0.001715,57105.0,57104.0,1.39391725]
[1725545959279,0.002715,57105.0,57104.0,1.07167925]
[1725545960025,0.134,57126.0,57106.0,0.175111]
[1725545960241,0.55263636,57120.0,57104.0,0.54632225]
[1725545960485,0.134,57126.0,57104.0,0.1913]
[1725545960486,0.365183,57119.0,57104.0,0.1913]
[1725545960687,0.133683,57118.0,57104.0,0.028]
[1725545960913,0.350074,57131.0,57109.0,0.35502225]
[1725545961182,0.50964,57130.0,57109.0,0.35502225]
[1725545961432,0.02561607,57134.0,57109.0,0.35502225]
[1725545961622,0.346271,57133.0,57110.0,0.3502]
[1725545961836,0.0002113,57134.0,57111.0,0.1522]
[1725545962052,0.178421,57133.0,57114.0,0.35502225]
[1725545962268,0.0002113,57134.0,57115.0,0.00350102]
[1725545962496,0.0002113,57134.0,57126.0,0.175049]
[1725545962726,0.0002113,57134.0,57111.0,0.1522]
[1725545962727,0.35502225,57129.0,57111.0,0.1522]
[1725545962930,0.35502225,57129.0,57106.0,0.52750515]
[1725545962931,0.35502225,57122.0,57106.0,0.52750515]
[1725545963153,0.345067,57121.0,57106.0,0.52650515]
[1725545963367,0.345067,57121.0,57104.0,0.1531]
[1725545963368,0.345067,57121.0,57111.0,0.006]
[1725545963587,0.1,57120.0,57111.0,0.006]
[1725545963827,0.450136,57121.0,57111.0,0.006]
[1725545964057,0.51,57129.0,57111.0,0.006]
[1725545964058,0.00081,57135.0,57115.0,0.35502225]
[1725545964520,0.02640615,57134.0,57125.0,0.175053]
[1725545964733,0.02640615,57134.0,57116.0,0.1537]
[1725545964734,0.02640615,57134.0,57128.0,0.175044]
[1725545964964,0.0002113,57134.0,57125.0,0.175053]
[1725545965200,0.0002113,57134.0,57123.0,0.350115]
[1725545965201,0.0002113,57134.0,57126.0,0.17505]
[1725545965426,0.02593651,57134.0,57126.0,0.17505]
[1725545965648,0.0002113,57134.0,57126.0,0.17505]
[1725545965877,0.0002113,57134.0,57127.0,0.175046]
[1725545966106,0.175035,57132.0,57128.0,0.001]
[1725545966403,0.175041,57130.0,57116.0,0.1537]
[1725545966637,0.350062,57133.0,57116.0,0.1537]
[1725545966880,0.0002113,57134.0,57126.0,0.001]
[1725545966881,0.875242,57127.0,57126.0,0.001]
[1725545967122,1.134872,57127.0,57126.0,0.001]
[1725545967361,1.484969,57127.0,57126.0,0.001]
[1725545967804,1.584969,57127.0,57126.0,0.001]
[1725545968248,2.062466,57127.0,57126.0,0.001]
[1725545968469,2.062466,57127.0,57106.0,0.1332]
[1725545968470,0.175096,57112.0,57106.0,0.1332]
[1725545968677,0.175092,57113.0,57106.0,0.308311]
[1725545968912,0.350144,57120.0,57106.0,0.308311]
[1725545969131,0.175093,57113.0,57106.0,0.308311]
[1725545969342,0.350144,57120.0,57106.0,0.308311]
[1725545969576,0.175101,57110.0,57106.0,0.1332]
[1725545970022,0.175101,57110.0,57106.0,0.1472]
[1725545970276,0.35018,57114.0,57106.0,0.32231]
[1725545970509,0.175099,57111.0,57106.0,0.1332]
[1725545970929,0.175102,57110.0,57106.0,0.1332]
[1725545971854,0.02523523,57117.0,57107.0,0.00350197]
[1725545972069,0.350117,57124.0,57116.0,0.175082]
[1725545972285,0.1,57126.0,57119.0,0.175071]
[1725545972286,0.350104,57126.0,57119.0,0.175071]
[1725545972500,0.175051,57127.0,57118.0,0.350151]
[1725545972736,0.3502683,57134.0,57120.0,0.175069]
[1725545972737,0.3764222,57134.0,57120.0,0.175069]
[1725545972980,0.350092,57128.0,57120.0,0.175069]
[1725545973208,0.175047,57128.0,57122.0,0.175062]
[1725545973439,0.0263652,57134.0,57126.0,0.17505]
[1725545973440,0.175036,57131.0,57126.0,0.17505]
[1725545973670,0.175036,57131.0,57124.0,0.1224]
[1725545973671,0.350068,57132.0,57124.0,0.297456]
[1725545973917,0.0263652,57134.0,57124.0,0.297456]
[1725545973918,0.0263652,57134.0,57124.0,0.1224]
[1725545974230,0.175067,57121.0,57114.0,0.1244]
[1725545974459,0.350091,57128.0,57114.0,0.1244]
[1725545974707,0.175054,57125.0,57120.0,0.175069]
[1725545974946,0.350099,57127.0,57120.0,0.175069]
[1725545975213,0.0263652,57134.0,57122.0,0.175063]
[1725545975521,0.0263652,57134.0,57123.0,0.003501]
[1725545975775,0.0263652,57134.0,57127.0,0.175047]
[1725545975993,0.175031,57133.0,57128.0,0.127]
[1725545976210,0.0263652,57134.0,57129.0,0.175041]
[1725545976429,0.0263652,57134.0,57128.0,0.127]
[1725545976430,0.17503,57133.0,57128.0,0.127]
[1725545976656,0.175034,57132.0,57128.0,0.127]
[1725545976876,0.175043,57129.0,57124.0,0.330557]
[1725545977075,0.350074,57131.0,57124.0,0.1555]
[1725545977076,0.175046,57128.0,57124.0,0.1555]
[1725545977545,0.0263652,57134.0,57124.0,0.1555]
[1725545977546,0.175043,57129.0,57124.0,0.330557]
[1725545977802,0.350083,57130.0,57124.0,0.1555]
[1725545978031,0.17505,57127.0,57124.0,0.1555]
[1725545978248,0.175052,57126.0,57124.0,0.1555]
[1725545978469,0.175054,57125.0,57124.0,0.1555]
[1725545979113,0.350085,57129.0,57124.0,0.1555]
[1725545979394,0.175048,57127.0,57124.0,0.1555]
[1725545979602,0.350076,57131.0,57124.0,0.1555]
[1725545979818,0.350083,57130.0,57124.0,0.1835]
[1725545980026,0.350083,57130.0,57124.0,0.1695]
[1725545980027,0.175049,57127.0,57124.0,0.1695]
[1725545980247,0.175054,57125.0,57124.0,0.1695]
[1725545980461,0.175052,57126.0,57124.0,0.1675]
[1725545980726,0.350088,57129.0,57124.0,0.1555]
[1725545980938,0.175053,57126.0,57124.0,0.1695]
[1725545981155,0.17505,57127.0,57124.0,0.1805]
[1725545981372,0.175052,57126.0,57124.0,0.1805]
[1725545981794,0.175054,57125.0,57124.0,0.1805]
[1725545982239,0.525163,57125.0,57124.0,0.011]
[1725545982670,0.525163,57125.0,57124.0,0.014]
[1725545982671,0.875272,57125.0,57124.0,0.014]
[1725545982905,0.525163,57125.0,57124.0,0.014]
[1725545983099,0.525163,57125.0,57124.0,0.028]
[1725545983344,0.875272,57125.0,57124.0,0.014]
[1725545983563,0.525163,57125.0,57124.0,0.014]
[1725545983775,0.525163,57125.0,57124.0,0.028]
[1725545984009,0.000814,57132.0,57131.0,0.175036]
[1725545984242,0.000814,57132.0,57131.0,0.65510779]
[1725545984464,0.000814,57132.0,57131.0,1.13047979]
[1725545984706,0.000814,57132.0,57131.0,0.2975]
[1725545984932,0.000814,57132.0,57131.0,0.472536]
[1725545985144,0.000814,57132.0,57131.0,0.2975]
[1725545985379,0.000814,57132.0,57131.0,0.472536]
[1725545985639,0.000814,57132.0,57131.0,0.2975]
[1725545985819,0.000814,57132.0,57131.0,1.48055179]
[1725545986069,0.000814,57132.0,57131.0,0.822608]
[1725545986531,0.000814,57132.0,57131.0,0.486536]
[1725545986756,0.000814,57132.0,57131.0,0.500536]
[1725545986953,0.000814,57132.0,57131.0,0.836608]
[1725545987237,0.000814,57132.0,57131.0,1.18668]
[1725545987452,0.000814,57132.0,57131.0,1.17268]
[1725545987670,0.000814,57132.0,57131.0,1.18668]
[1725545987886,0.000814,57132.0,57131.0,0.836608]
[1725545988122,0.000814,57132.0,57131.0,0.486536]
[1725545988397,0.000814,57132.0,57131.0,1.49455179]
[1725545988599,0.000814,57132.0,57131.0,1.84462379]
[1725545989041,0.000814,57132.0,57131.0,2.20869579]
[1725545989287,0.000814,57132.0,57131.0,2.18069579]
[1725545989504,0.000814,57132.0,57131.0,2.19469579]
[1725545989746,0.000814,57132.0,57131.0,2.236896]
[1725545989983,0.000814,57132.0,57131.0,2.34989944]
[1725545990234,0.000814,57132.0,57131.0,2.36389944]
[1725545990465,0.000814,57132.0,57131.0,2.35989944]
[1725545990695,0.000814,57132.0,57131.0,2.34589944]
[1725545990956,0.0002113,57134.0,57133.0,2.24803]
[1725545991189,0.00081,57145.0,57136.0,1.48367679]
[1725545991406,0.00081,57145.0,57136.0,2.68273867]
[1725545991636,0.00081,57145.0,57136.0,2.63380279]
[1725545991855,0.00081,57145.0,57136.0,1.52885044]
[1725545992076,0.00081,57145.0,57130.0,0.2883]
[1725545992320,0.00081,57145.0,57132.0,0.175033]
[1725545992546,0.02609818,57139.0,57131.0,0.014]
[1725545992767,0.02609818,57139.0,57130.0,0.2883]
[1725545993017,0.000814,57134.0,57131.0,0.014]
[1725545993664,0.000814,57134.0,57132.0,0.014]
[1725545994110,0.000814,57134.0,57130.0,0.1567]
[1725545994544,0.000814,57134.0,57131.0,0.014]
[1725545994999,0.000814,57134.0,57130.0,0.1567]
[1725545995429,0.000814,57134.0,57131.0,0.014]
[1725545996122,0.17503,57133.0,57131.0,0.014]
[1725545996350,0.000814,57134.0,57131.0,0.014]
[1725545996351,0.525099,57132.0,57131.0,0.014]
[1725545996603,0.638599,57132.0,57131.0,0.014]
[1725545996825,0.875165,57132.0,57131.0,0.014]
[1725545997264,0.350098,57127.0,57118.0,0.1694]
[1725545997482,0.350083,57130.0,57118.0,0.1694]
[1725545997701,0.175043,57129.0,57119.0,0.350144]
[1725545997912,0.175051,57127.0,57118.0,0.344473]
[1725545998116,0.175056,57125.0,57118.0,0.1694]
[1725545998343,0.175051,57126.0,57118.0,0.344474]
[1725545998549,0.175056,57125.0,57118.0,0.344474]
[1725545998766,0.175051,57126.0,57119.0,0.175072]
[1725545998976,0.175048,57127.0,57119.0,0.175072]
[1725545999192,0.175052,57126.0,57119.0,0.175072]
[1725545999398,0.175048,57127.0,57120.0,0.175069]
[1725545999617,0.350084,57130.0,57121.0,0.175064]
[1725545999860,0.000814,57134.0,57121.0,0.175064]
[1725545999861,0.02579311,57129.0,57122.0,0.65799879]
[1725546000036,0.02579311,57129.0,57123.0,0.35012]
[1725546000554,0.02579311,57129.0,57128.0,1.038627]
[1725546000775,0.000814,57134.0,57128.0,0.513491]
[1725546000991,0.000814,57134.0,57122.0,0.1716]
[1725546001212,0.29016,57133.0,57122.0,0.1716]
[1725546001425,0.1668,57133.0,57122.0,0.1716]
[1725546001646,0.1668,57133.0,57123.0,0.014]
[1725546001868,0.350097,57127.0,57123.0,0.014]
[1725546002096,0.000814,57134.0,57133.0,0.1252]
[1725546002313,0.000814,57134.0,57133.0,0.82538971]
[1725546002540,0.000814,57134.0,57133.0,1.62550971]
[1725546003462,0.000814,57134.0,57133.0,2.00207]
[1725546003736,0.000814,57134.0,57133.0,2.01507]
[1725546004020,0.000814,57134.0,57133.0,2.36713]
[1725546004229,0.00013,57137.0,57136.0,2.20666079]
[1725546004447,0.00013,57137.0,57136.0,2.30666079]
[1725546004879,0.00013,57137.0,57136.0,2.29666079]
[1725546005299,0.00013,57137.0,57136.0,2.28666079]
[1725546005957,0.00013,57137.0,57136.0,2.30066079]
[1725546006827,0.00013,57137.0,57136.0,1.94061879]
[1725546007047,0.00013,57137.0,57136.0,1.49057679]
[1725546007496,0.00013,57137.0,57136.0,1.84061879]
[1725546007718,0.00013,57137.0,57136.0,1.85461879]
[1725546009160,0.00013,57137.0,57136.0,1.50457679]
[1725546009628,0.00013,57137.0,57136.0,1.95461879]
[1725546010759,0.00013,57137.0,57136.0,2.30466079]
[1725546011202,0.00013,57137.0,57136.0,2.66470279]
[1725546011422,0.00013,57137.0,57136.0,2.33466079]
[1725546011637,0.00013,57137.0,57136.0,2.55234196]
[1725546011855,0.00013,57137.0,57136.0,2.51017175]
[1725546012319,0.00013,57137.0,57136.0,2.33666079]
[1725546012997,0.00013,57137.0,57136.0,1.95461879]
[1725546013224,0.00013,57137.0,57136.0,1.196705]
[1725546013455,0.00013,57137.0,57136.0,0.365221]
[1725546013862,0.00013,57137.0,57136.0,0.715263]
[1725546014102,0.00013,57137.0,57136.0,0.365221]
[1725546014541,0.00013,57137.0,57136.0,0.189021]
[1725546014769,0.00013,57137.0,57132.0,0.81323679]
[1725546014770,0.00013,57137.0,57132.0,0.48290379]
[1725546015001,0.00013,57137.0,57136.0,0.014]
[1725546015002,0.306147,57137.0,57136.0,0.014]
[1725546015222,1.006217,57137.0,57136.0,0.028]
[1725546015661,1.006217,57137.0,57136.0,0.014]
[1725546015662,1.693438,57137.0,57136.0,0.014]
[1725546015928,1.71897903,57137.0,57136.0,0.014]
[1725546016132,1.69050982,57137.0,57136.0,0.014]
[1725546016367,1.225273,57130.0,57129.0,0.001628]
[1725546016586,0.875195,57130.0,57129.0,0.001628]
[1725546017737,0.46538782,57137.0,57129.0,0.001628]
[1725546017969,0.17503,57133.0,57132.0,0.014]
[1725546018178,0.52509,57133.0,57132.0,0.014]
[1725546018431,0.625067,57136.0,57129.0,0.001628]
[1725546018661,0.625067,57136.0,57133.0,0.001628]
[1725546018662,0.525081,57134.0,57133.0,0.001628]
[1725546018944,0.175027,57134.0,57133.0,0.001628]
[1725546019162,0.875135,57134.0,57133.0,0.001628]
[1725546019382,1.667269,57134.0,57133.0,0.001628]
[1725546019601,1.630269,57134.0,57133.0,0.001628]
[1725546019833,0.525081,57134.0,57133.0,0.001628]
[1725546020069,0.175023,57136.0,57133.0,0.001628]
[1725546020242,0.62175682,57137.0,57133.0,0.001628]
[1725546020545,0.525081,57134.0,57133.0,0.001628]
[1725546020767,0.875135,57134.0,57133.0,0.001628]
[1725546021047,1.070183,57134.0,57133.0,0.001628]
[1725546021232,0.875135,57134.0,57133.0,0.001628]
[1725546021457,0.875135,57134.0,57133.0,0.012628]
[1725546021668,1.765322,57134.0,57133.0,0.017628]
[1725546021924,1.350459,57134.0,57133.0,0.017628]
[1725546023075,1.800513,57134.0,57133.0,0.017628]
[1725546023272,2.04282703,57134.0,57133.0,0.017628]
[1725546023478,1.614259,57134.0,57133.0,0.017628]
[1725546023705,2.04282703,57134.0,57133.0,0.017628]
[1725546023919,1.964313,57134.0,57133.0,0.017628]
[1725546024173,1.488989,57134.0,57133.0,0.017628]
[1725546024602,1.488989,57134.0,57133.0,0.012628]
[1725546025048,1.488989,57134.0,57133.0,0.001628]
[1725546025049,2.363012,57134.0,57133.0,0.001628]
[1725546025556,1.488989,57134.0,57133.0,0.007628]
[1725546025764,1.138935,57134.0,57133.0,0.007628]
[1725546026416,1.488989,57134.0,57133.0,0.007628]
[1725546026854,1.950799,57134.0,57133.0,0.007628]
[1725546027539,1.949616,57134.0,57133.0,0.007628]
[1725546027766,2.46354002,57134.0,57133.0,0.007628]
[1725546028003,2.50338611,57134.0,57133.0,0.007628]
[1725546028245,2.81360804,57134.0,57133.0,0.007628]
[1725546028466,2.42487,57134.0,57133.0,0.007628]
[1725546028687,2.91830105,57134.0,57133.0,0.007628]
[1725546029151,2.42487,57134.0,57133.0,0.007628]
[1725546029398,2.50337815,57134.0,57133.0,0.007628]
[1725546029676,2.565329,57130.0,57129.0,0.001628]
[1725546029924,2.565329,57130.0,57099.0,0.350268]
[1725546029925,0.525328,57107.0,57100.0,0.1602]
[1725546030425,0.875547,57107.0,57100.0,0.1602]
[1725546030656,1.575985,57107.0,57091.0,0.52650515]
[1725546030884,1.629266,57107.0,57092.0,0.52650515]
[1725546031125,1.96059,57107.0,57092.0,0.52650515]
[1725546031368,1.567182,57107.0,57092.0,0.52650515]
[1725546031626,1.58206404,57107.0,57092.0,0.52650515]
[1725546031831,1.58206404,57107.0,57091.0,0.350315]
[1725546031832,1.60822985,57107.0,57091.0,0.350317]
[1725546032077,1.60822985,57107.0,57089.0,0.52650515]
[1725546032342,0.04104785,57107.0,57104.0,0.1535]
[1725546032567,0.01488204,57107.0,57106.0,0.87719]
[1725546032810,0.2801,57121.0,57114.0,0.1535]
[1725546033034,0.30787179,57129.0,57114.0,0.1525]
[1725546033035,0.175058,57124.0,57114.0,0.1525]
[1725546033472,0.175078,57118.0,57114.0,0.1525]
[1725546033476,0.17508,57117.0,57114.0,0.1525]
[1725546033717,0.30787179,57125.0,57114.0,0.1525]
[1725546033718,0.18770352,57123.0,57118.0,0.525222]
[1725546033992,0.18770352,57123.0,57122.0,0.52519]
[1725546033993,0.01264152,57123.0,57122.0,0.52519]
[1725546034234,0.000944,57137.0,57133.0,0.17503]
[1725546034465,0.000944,57137.0,57122.0,0.1303]
[1725546034692,0.000944,57137.0,57130.0,0.175038]
[1725546034693,0.175025,57135.0,57130.0,0.175038]
[1725546034922,0.175025,57135.0,57131.0,0.175035]
[1725546035177,0.000944,57137.0,57133.0,0.87515]
[1725546035416,0.000944,57137.0,57133.0,0.52509]
[1725546035656,0.000944,57137.0,57133.0,1.01595]
[1725546035657,0.001814,57134.0,57133.0,1.01595]
[1725546035893,0.000814,57134.0,57133.0,1.16135]
[1725546036121,0.001814,57134.0,57133.0,1.16135]
[1725546036378,0.002814,57134.0,57133.0,1.51141]
[1725546036622,0.000944,57137.0,57133.0,0.63626]
[1725546036865,0.00021121,57158.0,57144.0,0.48286779]
[1725546037138,0.00021121,57158.0,57144.0,1.81934679]
[1725546037373,0.00021121,57158.0,57144.0,2.16933979]
[1725546037890,0.00021121,57158.0,57144.0,1.511475]
[1725546038115,0.28821898,57164.0,57144.0,0.2885]
[1725546038397,0.174952,57159.0,57151.0,0.349944]
[1725546038597,0.174954,57158.0,57145.0,0.349984]
[1725546038849,0.174954,57158.0,57144.0,0.2885]
[1725546038850,0.174966,57154.0,57148.0,0.174982]
[1725546039104,0.349918,57157.0,57144.0,0.2885]
[1725546039330,0.174975,57151.0,57145.0,0.174992]
[1725546039575,0.349939,57153.0,57151.0,0.005]
[1725546039576,0.174969,57153.0,57151.0,0.005]
[1725546039801,0.174976,57151.0,57144.0,0.2935]
[1725546040073,0.174978,57150.0,57144.0,0.463495]
[1725546040263,0.2341,57165.0,57144.0,0.463495]
[1725546040264,0.524943,57149.0,57148.0,0.011]
[1725546040478,0.349954,57151.0,57144.0,0.340694]
[1725546040688,0.174984,57148.0,57144.0,0.1657]
[1725546040989,0.25980211,57165.0,57144.0,0.16919969]
[1725546041196,0.18180026,57172.0,57156.0,0.349919]
[1725546041413,0.174924,57168.0,57162.0,0.174938]
[1725546041658,0.02597149,57172.0,57171.0,0.52474]
[1725546041879,0.00081,57179.0,57176.0,0.174898]
[1725546042319,0.00081,57179.0,57176.0,0.524695]
[1725546042547,0.00081,57179.0,57176.0,0.874492]
[1725546042988,0.00081,57179.0,57176.0,0.524695]
[1725546043209,0.00081,57179.0,57176.0,0.006]
[1725546043463,0.1757,57179.0,57176.0,0.02]
[1725546043662,0.1757,57179.0,57176.0,0.014]
[1725546043663,0.8251285,57177.0,57176.0,0.014]
[1725546043875,1.5503165,57177.0,57176.0,0.028]
[1725546044094,1.8355885,57177.0,57176.0,0.028]
[1725546044323,1.8355885,57177.0,57176.0,0.014]
[1725546044547,1.8133885,57177.0,57176.0,0.028]
[1725546044798,0.9951185,57177.0,57176.0,0.028]
[1725546045017,0.9951185,57177.0,57176.0,0.014]
[1725546045246,1.02063486,57177.0,57176.0,0.028]
[1725546045697,0.67084486,57177.0,57176.0,0.028]
[1725546045933,0.67070157,57177.0,57176.0,0.014]
[1725546046444,0.14617217,57177.0,57171.0,0.1321]
[1725546046652,0.14617217,57177.0,57176.0,0.002]
[1725546046653,0.04617217,57177.0,57176.0,0.002]
[1725546046917,0.57085717,57177.0,57176.0,0.005]
[1725546047587,0.92064717,57177.0,57176.0,0.005]
[1725546048020,0.22106717,57177.0,57176.0,0.005]
[1725546048244,0.92064717,57177.0,57176.0,0.005]
[1725546048481,0.92059171,57177.0,57176.0,0.005]
[1725546048819,1.27038171,57177.0,57176.0,0.003]
[1725546048910,1.27043101,57177.0,57176.0,0.003]
[1725546049127,1.27043101,57177.0,57176.0,0.011]
[1725546049128,0.92059171,57177.0,57176.0,0.011]
[1725546049998,2.04285881,57177.0,57176.0,0.011]
[1725546050229,2.17635881,57177.0,57176.0,0.011]
[1725546050435,1.81620364,57177.0,57176.0,0.011]
[1725546050661,1.81620364,57177.0,57176.0,0.00189444]
[1725546050662,2.27599364,57177.0,57176.0,0.00189444]
[1725546050888,2.62572507,57177.0,57176.0,0.00189444]
[1725546051110,2.26593507,57177.0,57176.0,0.00189444]
[1725546051372,2.27593507,57177.0,57176.0,0.00189444]
[1725546051569,0.524851,57159.0,57158.0,0.52650515]
[1725546051997,0.00791108,57159.0,57151.0,0.166]
[1725546052222,0.00791108,57159.0,57155.0,0.174961]
[1725546052449,0.174942,57162.0,57155.0,0.174961]
[1725546052655,0.34987,57164.0,57154.0,0.349928]
[1725546052881,0.34981,57174.0,57163.0,0.174938]
[1725546053091,0.1,57173.0,57159.0,0.338949]
[1725546053320,0.1,57173.0,57159.0,0.164]
[1725546053531,0.3610714,57177.0,57163.0,0.349875]
[1725546053532,0.0112764,57177.0,57163.0,0.349875]
[1725546053745,0.0112764,57177.0,57161.0,0.349884]
[1725546053746,7.555e-05,57172.0,57161.0,0.349884]
[1725546053979,7.555e-05,57172.0,57160.0,0.1293]
[1725546053980,0.174918,57170.0,57162.0,0.174941]
[1725546054186,0.174923,57168.0,57160.0,0.304246]
[1725546054411,0.174926,57167.0,57160.0,0.1293]
[1725546054634,0.349849,57168.0,57160.0,0.1293]
[1725546054850,0.349857,57167.0,57160.0,0.1293]
[1725546055064,0.001,57162.0,57160.0,0.1293]
[1725546055743,0.174926,57167.0,57160.0,0.304246]
[1725546055963,0.349841,57169.0,57161.0,0.174943]
[1725546055964,0.001,57168.0,57161.0,0.174943]
[1725546056168,0.001,57168.0,57160.0,0.491194]
[1725546056426,0.001,57168.0,57164.0,0.174932]
[1725546056685,0.001,57168.0,57161.0,0.174943]
[1725546056686,0.174923,57168.0,57161.0,0.174943]
[1725546056941,0.001,57162.0,57161.0,1.045619]
[1725546057186,0.001,57162.0,57161.0,1.540507]
[1725546057436,0.00081,57179.0,57176.0,1.509489]
[1725546058002,0.00081,57179.0,57178.0,0.90446]
[1725546058228,0.00102112,57183.0,57182.0,1.25789007]
[1725546058457,0.00102112,57183.0,57182.0,2.33201007]
[1725546059119,0.00081,57192.0,57182.0,2.33201007]
[1725546059120,0.00081,57192.0,57191.0,1.223967]
[1725546059352,0.00081,57192.0,57191.0,1.86445707]
[1725546060316,0.00081,57192.0,57191.0,1.16504707]
[1725546060566,0.00081,57192.0,57191.0,0.287]
[1725546060791,0.00081,57192.0,57191.0,0.1698]
[1725546061045,0.00081,57192.0,57191.0,0.344652]
[1725546061306,0.00081,57192.0,57191.0,0.1698]
[1725546061537,0.525358,57192.0,57191.0,0.014]
[1725546061786,0.875057,57192.0,57191.0,0.014]
[1725546062250,1.224756,57192.0,57191.0,0.014]
[1725546062504,1.224756,57192.0,57191.0,0.028]
[1725546062738,0.875057,57192.0,57191.0,0.014]
[1725546062980,0.174858,57189.0,57178.0,0.349779]
[1725546063201,0.350509,57192.0,57191.0,0.012]
[1725546063202,0.875057,57192.0,57191.0,0.012]
[1725546063458,0.525358,57192.0,57191.0,0.008]
[1725546063667,0.00081,57192.0,57191.0,0.008]
[1725546063912,0.00081,57192.0,57191.0,0.174852]
[1725546064122,0.00081,57192.0,57187.0,0.00349702]
[1725546064123,0.00081,57192.0,57190.0,0.174854]
[1725546064397,0.00081,57192.0,57191.0,0.698457]
[1725546064853,0.00081,57192.0,57191.0,0.346752]
[1725546065098,0.00081,57192.0,57191.0,0.1719]
[1725546065296,0.525358,57192.0,57191.0,0.1719]
[1725546065517,0.525358,57192.0,57186.0,0.1338]
[1725546065518,0.00081,57192.0,57186.0,0.1338]
[1725546065728,0.00081,57192.0,57179.0,0.174887]
[1725546065729,0.17488,57182.0,57180.0,0.1619]
[1725546065963,0.17488,57182.0,57164.0,0.02]
[1725546065964,0.175659,57192.0,57191.0,0.011]
[1725546066187,1.224756,57192.0,57191.0,0.017]
[1725546066429,0.525358,57192.0,57191.0,0.011]
[1725546066901,0.175659,57192.0,57191.0,0.011]
[1725546067117,0.175659,57192.0,57188.0,0.1667]
[1725546067118,0.174853,57191.0,57188.0,0.1667]
[1725546067346,0.524575,57189.0,57188.0,0.1667]
[1725546068044,0.174858,57189.0,57188.0,0.1667]
[1725546068538,0.174874,57184.0,57182.0,0.1616]
[1725546068801,0.00081,57192.0,57182.0,0.1616]
[1725546069023,0.00081,57192.0,57185.0,0.30709641]
[1725546069249,0.1651,57208.0,57187.0,0.174862]
[1725546069250,0.174843,57194.0,57187.0,0.174862]
[1725546069516,0.174843,57194.0,57184.0,0.1709]